[Event "XXIX Cracovia 2018"]
[Site "Krakow"]
[Date "2018.12.29"]
[Round "4"]
[White "Zakrzewski, Marek"]
[Black "Bombek, Peter"]
[Result "1-0"]
[ECO "C03"]
[WhiteElo "2311"]
[BlackElo "2205"]
[Annotator "NA"]
[PlyCount "63"]
[EventDate "2018.12.27"]
[EventType "swiss"]
[EventCountry "POL"]
[SourceTitle "playchess.com"]
[Source "ChessBase"]
[SourceQuality "1"]
[TimeControl "40/5400+30:1800+30"]

1. e4 {[%emt 0:00:32]} e6 {[%emt 0:00:00]} 2. d4 {[%emt 0:00:08]} d5 {[%emt 0:00:00]} 3. Nd2 {[%emt 0:00:08]} a6 {[%emt 0:00:00]} 4. Bd3 {[%emt 0:00:32]} c5 {[%emt 0:00:22]} 5. dxc5 {[%emt 0:00:21]} Nf6 {[%emt 0:01:32]} 6. Qe2 {[%emt 0:04:57]} Bxc5 {[%emt 0:00:57]} 7. Ngf3 {[%emt 0:00:21]} Nc6 {[%emt 0:01:12]} 8. c3 {[%emt 0:00:20]} Qc7 {[%emt 0:02:33]} 9. O-O {[%emt 0:01:38]} Ba7 {[%emt 0:00:47]} 10. b3 {[%emt 0:04:58]} Bd7 {[%emt 0:10:40]} 11. Ba3 {[%emt 0:06:38]} O-O-O {[%emt 0:08:05]} 12. e5 {[%emt 0:01:07]} Nh5 {[%emt 0:10:52]} 13. g3 {[%emt 0:00:44]} f6 {[%emt 0:02:28]} 14. Bd6 {[%emt 0:01:58]} Qb6 {[%emt 0:01:05]} 15. c4 {[%emt 0:03:35]} Bb8 {[%emt 0:05:04]} 16. c5 {[%emt 0:20:53]} Qa7 {[%emt 0:01:06]} 17. a3 {[%emt 0:04:33]} g6 {[%emt 0:03:32]} 18. b4 {[%emt 0:01:32]} fxe5 {[%emt 0:02:03]} 19. Nxe5 {[%emt 0:01:19]} Bxd6 {[%emt 0:06:39]} 20. cxd6 {[%emt 0:00:37]} Nxe5 {[%emt 0:05:26]} 21. Qxe5 {[%emt 0:00:09]} Rhf8 {[%emt 0:01:28]} 22. Nb3 {[%emt 0:03:47]} Kb8 {[%emt 0:08:03]} 23. Nc5 {[%emt 0:01:14]} Ka8 {[%emt 0:01:32]} 24. Rac1 {[%emt 0:05:38]} Qb6 {[%emt 0:02:56]} 25. Kg2 {[%emt 0:02:23]} Bc8 {[%emt 0:01:02]} 26. Na4 {[%emt 0:00:12]} Qa7 {[%emt 0:01:39]} 27. Rc7 {[%emt 0:06:45]} Nf6 {[%emt 0:00:52]} 28. Nc5 {[%emt 0:01:19]} Ne8 {[%emt 0:01:50]} 29. Rxc8+ {[%emt 0:01:49]} Rxc8 {[%emt 0:00:01]} 30. d7 {[%emt 0:00:10]} Rb8 {[%emt 0:01:22]} 31. dxe8=Q {[%emt 0:01:32]} Rfxe8 {[%emt 0:05:56]} 32. Nxe6 {[%emt 0:00:09]} 1-0

[Event "XXIX Cracovia 2018"]
[Site "Krakow"]
[Date "2018.12.29"]
[Round "4"]
[White "Grela, Kacper"]
[Black "Kosakowski, Jakub"]
[Result "1-0"]
[ECO "B51"]
[WhiteElo "2305"]
[BlackElo "2415"]
[Annotator "NA"]
[PlyCount "75"]
[EventDate "2018.12.27"]
[EventType "swiss"]
[EventCountry "POL"]
[SourceTitle "playchess.com"]
[Source "ChessBase"]
[SourceQuality "1"]
[TimeControl "40/5400+30:1800+30"]

1. e4 {[%emt 0:00:00]} c5 {[%emt 0:00:00]} 2. Nf3 {[%emt 0:00:30]} d6 {[%emt 0:00:12]} 3. Bb5+ {[%emt 0:00:09]} Nd7 {[%emt 0:01:50]} 4. c4 {[%emt 0:00:09]} Ngf6 {[%emt 0:01:05]} 5. Nc3 {[%emt 0:00:10]} g6 {[%emt 0:01:38]} 6. O-O {[%emt 0:00:15]} Bg7 {[%emt 0:00:08]} 7. d4 {[%emt 0:01:29]} cxd4 {[%emt 0:00:10]} 8. Nxd4 {[%emt 0:00:09]} O-O {[%emt 0:00:10]} 9. Bxd7 {[%emt 0:04:25]} Bxd7 {[%emt 0:00:15]} 10. b3 {[%emt 0:03:59]} a6 {[%emt 0:02:55]} 11. Bb2 {[%emt 0:02:45]} b5 {[%emt 0:02:41]} 12. cxb5 {[%emt 0:06:27]} axb5 {[%emt 0:00:09]} 13. e5 {[%emt 0:00:59]} dxe5 {[%emt 0:00:56]} 14. Ndxb5 {[%emt 0:00:10]} Qb8 {[%emt 0:03:52]} 15. a4 {[%emt 0:16:28]} Bc6 {[%emt 0:04:26]} 16. Qe2 {[%emt 0:04:29]} e4 {[%emt 0:11:11]} 17. Rfd1 {[%emt 0:05:08]} h5 {[%emt 0:00:36]} 18. h3 {[%emt 0:01:17]} Qb7 {[%emt 0:01:25]} 19. Nd4 {[%emt 0:07:45]} Bd7 {[%emt 0:04:19]} 20. Re1 {[%emt 0:01:55]} e5 {[%emt 0:20:23]} 21. Ndb5 {[%emt 0:00:08]} Rfd8 {[%emt 0:00:10]} 22. Qc4 {[%emt 0:10:56]} Bf5 {[%emt 0:07:26]} 23. Red1 {[%emt 0:02:00]} Bf8 {[%emt 0:05:37]} 24. Qc7 {[%emt 0:01:17]} Qxc7 {[%emt 0:01:45]} 25. Nxc7 {[%emt 0:00:06]} Rac8 {[%emt 0:00:34]} 26. Rxd8 {[%emt 0:00:09]} Rxd8 {[%emt 0:00:07]} 27. a5 {[%emt 0:00:24]} Bc5 {[%emt 0:00:23]} 28. Na4 {[%emt 0:01:53]} Bd4 {[%emt 0:07:04]} 29. Bxd4 {[%emt 0:03:37]} exd4 {[%emt 0:00:02]} 30. a6 {[%emt 0:00:29]} e3 {[%emt 0:00:20]} 31. fxe3 {[%emt 0:01:51]} dxe3 {[%emt 0:00:02]} 32. a7 {[%emt 0:00:12]} Be4 {[%emt 0:01:04]} 33. Nc3 {[%emt 0:00:16]} Ba8 {[%emt 0:01:02]} 34. Nxa8 {[%emt 0:00:23]} Rxa8 {[%emt 0:00:02]} 35. b4 {[%emt 0:00:17]} Nd7 {[%emt 0:00:15]} 36. Nd5 {[%emt 0:00:10]} e2 {[%emt 0:00:34]} 37. Kf2 {[%emt 0:00:15]} Ne5 {[%emt 0:04:16]} 38. Nc7 {[%emt 0:00:20]} 1-0

[Event "XXIX Cracovia 2018"]
[Site "Krakow"]
[Date "2018.12.29"]
[Round "4"]
[White "Nowicki, Bartosz"]
[Black "Jarmula, Lukasz"]
[Result "1-0"]
[ECO "B63"]
[WhiteElo "2305"]
[BlackElo "2481"]
[Annotator "ChessBase"]
[PlyCount "81"]
[EventDate "2018.12.27"]
[EventType "swiss"]
[EventCountry "POL"]
[SourceTitle "playchess.com"]
[Source "ChessBase"]
[SourceQuality "1"]
[TimeControl "40/5400+30:1800+30"]

1. e4 {[%emt 0:00:00]} c5 {[%emt 0:00:00]} 2. Nf3 {[%emt 0:00:00]} d6 {[%emt 0:01:17]} 3. d4 {[%emt 0:00:00]} cxd4 {[%emt 0:00:05]} 4. Nxd4 {[%emt 0:00:00]} Nf6 {[%emt 0:00:09]} 5. Nc3 {[%emt 0:00:00]} Nc6 {[%emt 0:00:05]} 6. Bg5 {[%emt 0:00:00]} e6 {[%emt 0:00:06]} 7. Qd2 {[%emt 0:00:04]} Be7 {[%emt 0:00:07]} 8. O-O-O {[%emt 0:00:10]} a6 {[%emt 0:00:05]} 9. Bxf6 {[%emt 0:05:56]} gxf6 {[%emt 0:09:48]} 10. f4 {[%emt 0:00:06]} Bd7 {[%emt 0:02:53]} 11. Kb1 {[%emt 0:00:17]} b5 {[%emt 0:00:38]} 12. f5 {[%emt 0:04:38]} Nxd4 {[%emt 0:08:04]} 13. Qxd4 {[%emt 0:00:06]} Qc7 {[%emt 0:00:35]} 14. Be2 {[%emt 0:01:24]} h5 {[%emt 0:00:20]} 15. Bf3 {[%emt 0:03:14]} Rb8 {[%emt 0:06:02]} 16. h4 {[%emt 0:04:00]} b4 {[%emt 0:01:51]} 17. Ne2 {[%emt 0:00:06]} e5 {[%emt 0:00:32]} 18. Qd2 {[%emt 0:00:28]} a5 {[%emt 0:08:40]} 19. Ng3 {[%emt 0:03:54]} Bc6 {[%emt 0:03:39]} 20. Rhe1 {[%emt 0:05:28]} a4 {[%emt 0:15:38]} 21. Nxh5 {[%emt 0:00:43]} Bb5 {[%emt 0:08:11]} 22. Re3 {[%emt 0:08:00]} Bc4 {[%emt 0:03:42]} 23. g4 {[%emt 0:04:32]} Rg8 {[%emt 0:04:11]} 24. b3 {[%emt 0:17:09]} Bb5 {[%emt 0:02:57]} 25. Be2 {[%emt 0:00:31]} Bxe2 {[%emt 0:03:03]} 26. Qxe2 {[%emt 0:00:06]} Rc8 {[%emt 0:01:21]} 27. Rg3 {[%emt 0:01:34]} a3 {[%emt 0:03:22]} 28. Rdd3 {[%emt 0:06:09]} Qb6 {[%emt 0:03:29]} 29. g5 {[%emt 0:04:19]} fxg5 {[%emt 0:00:16]} 30. f6 {[%emt 0:00:14]} Bf8 {[%emt 0:00:24]} 31. hxg5 {[%emt 0:00:09]} Rh8 {[%emt 0:02:25]} 32. Qg4 {[%emt 0:03:41]} Qc6 {[%emt 0:04:01]} 33. Rd2 {[%emt 0:00:42]} Qd7 {[%emt 0:02:27]} 34. Qd1 {[%emt 0:03:21]} Rh7 {[%emt 0:03:23]} 35. Rgd3 {[%emt 0:00:50]} Rc6 {[%emt 0:00:49]} 36. Rd5 {[%emt 0:00:21]} Qh3 {[%emt 0:01:09]} 37. Ng7+ {[%emt 0:05:16]} Bxg7 {[%emt 0:01:41]} 38. fxg7 {[%emt 0:00:02]} Qc3 {[%emt 0:01:00]} 39. g8=Q+ {[%emt 0:00:14]} Ke7 {[%emt 0:00:20]} 40. Qc1 {[%emt 0:00:00]} Rh1 {[%emt 0:00:00]} 41. Rd1 {[%emt 0:01:00]} 1-0

[Event "XXIX Cracovia 2018"]
[Site "Krakow"]
[Date "2018.12.29"]
[Round "4"]
[White "Zylka, Stanislaw"]
[Black "Strybuk, Artsiom I"]
[Result "1-0"]
[ECO "C65"]
[WhiteElo "2305"]
[BlackElo "2172"]
[Annotator "ChessBase"]
[PlyCount "159"]
[EventDate "2018.12.27"]
[EventType "swiss"]
[EventCountry "POL"]
[SourceTitle "playchess.com"]
[Source "ChessBase"]
[SourceQuality "1"]
[TimeControl "40/5400+30:1800+30"]

1. e4 e5 2. Nf3 Nc6 3. Bb5 Nf6 4. d3 Bc5 5. O-O d6 6. c3 O-O 7. Nbd2 Ne7 8. d4 exd4 9. cxd4 Bb6 10. Re1 c6 11. Bd3 Bg4 12. Qc2 h6 13. h3 Bxf3 14. Nxf3 d5 15. e5 Ne4 16. Bxe4 dxe4 17. Qxe4 Qd5 18. Qxd5 Nxd5 19. Bd2 Nc7 20. Rad1 Rfd8 21. Bc3 Ne6 22. g3 Rd5 23. Rd2 Rad8 24. Re4 R8d7 25. Kf1 g6 26. Ke2 Rd8 27. h4 h5 28. Kd1 Kf8 29. b4 Ke7 30. Kc2 a6 31. Kb3 Ba7 32. Kc4 R8d7 33. Kb3 Ke8 34. Kc2 Ke7 35. a3 Ke8 36. Kd1 Ke7 37. Ke2 Rd8 38. a4 R8d7 39. Kd1 Ke8 40. Kc2 Ke7 41. a5 Ke8 42. Kb3 Ke7 43. Kc4 Ke8 44. Re1 Ke7 45. Red1 Ke8 46. Ne1 Ng7 47. Ng2 Rb5 48. Ne3 Nf5 49. Rd3 Ke7 50. Rg1 Rd8 51. g4 hxg4 52. Rxg4 Rh8 53. Nxf5+ gxf5 54. Rf4 Rd5 55. Rdf3 Ke8 56. Rg3 f6 57. Rxf5 Rxh4 58. f4 fxe5 59. Rg8+ Ke7 60. Rg7+ Ke6 61. Rxe5+ Rxe5 62. fxe5 b5+ 63. axb6 Bxb6 64. Rg6+ Kd7 65. Rd6+ Kc7 66. Bd2 Rg4 67. Bh6 Kb7 68. Bf8 Re4 69. Kd3 Re1 70. Bh6 Bc7 71. Rd7 Kc8 72. Re7 Rh1 73. Bf4 a5 74. bxa5 Bxa5 75. e6 Kd8 76. Ra7 Bb6 77. Bg5+ Kc8 78. Ra8+ Kb7 79. e7 Rd1+ 80. Ke4 1-0

[Event "XXIX Cracovia 2018"]
[Site "Krakow"]
[Date "2018.12.29"]
[Round "4"]
[White "Lee, Qing Aun"]
[Black "Hnydiuk, Aleksander"]
[Result "1/2-1/2"]
[ECO "B03"]
[WhiteElo "2297"]
[BlackElo "2409"]
[Annotator "NA"]
[PlyCount "71"]
[EventDate "2018.12.27"]
[EventType "swiss"]
[EventCountry "POL"]
[SourceTitle "playchess.com"]
[Source "ChessBase"]
[SourceQuality "1"]
[TimeControl "40/5400+30:1800+30"]

1. e4 {[%emt 0:00:00]} Nf6 {[%emt 0:02:16]} 2. e5 {[%emt 0:00:45]} Nd5 {[%emt 0:00:08]} 3. c4 {[%emt 0:00:07]} Nb6 {[%emt 0:00:04]} 4. d4 {[%emt 0:00:10]} d6 {[%emt 0:00:05]} 5. exd6 {[%emt 0:00:17]} exd6 {[%emt 0:00:20]} 6. Nc3 {[%emt 0:00:20]} Be7 {[%emt 0:01:29]} 7. Bd3 {[%emt 0:00:15]} Nc6 {[%emt 0:10:22]} 8. Be3 {[%emt 0:00:39]} O-O {[%emt 0:02:16]} 9. Nge2 {[%emt 0:00:32]} Bg4 {[%emt 0:06:40]} 10. O-O {[%emt 0:02:22]} Nb4 {[%emt 0:12:44]} 11. b3 {[%emt 0:00:15]} Qd7 {[%emt 0:02:21]} 12. Bb1 {[%emt 0:04:23]} Bf5 {[%emt 0:08:15]} 13. a3 {[%emt 0:12:51]} Nc6 {[%emt 0:02:13]} 14. Bxf5 {[%emt 0:06:30]} Qxf5 {[%emt 0:00:03]} 15. Ng3 {[%emt 0:00:14]} Qd7 {[%emt 0:04:55]} 16. d5 {[%emt 0:02:52]} Ne5 {[%emt 0:00:54]} 17. f4 {[%emt 0:00:17]} Ng4 {[%emt 0:01:28]} 18. Bd4 {[%emt 0:00:08]} c5 {[%emt 0:14:25]} 19. dxc6 {[%emt 0:08:47]} bxc6 {[%emt 0:00:04]} 20. f5 {[%emt 0:01:49]} Nf6 {[%emt 0:03:22]} 21. Nce4 {[%emt 0:00:41]} Nxe4 {[%emt 0:03:18]} 22. Nxe4 {[%emt 0:00:01]} f6 {[%emt 0:00:12]} 23. a4 {[%emt 0:03:34]} d5 {[%emt 0:05:09]} 24. Nc5 {[%emt 0:00:40]} Bxc5 {[%emt 0:00:06]} 25. Bxc5 {[%emt 0:00:08]} Rfe8 {[%emt 0:01:51]} 26. a5 {[%emt 0:03:41]} Nc8 {[%emt 0:00:05]} 27. Qd3 {[%emt 0:01:22]} Nd6 {[%emt 0:06:45]} 28. cxd5 {[%emt 0:11:01]} Ne4 {[%emt 0:00:08]} 29. d6 {[%emt 0:01:38]} Nxc5 {[%emt 0:01:35]} 30. Qc4+ {[%emt 0:00:02]} Ne6 {[%emt 0:06:16]} 31. fxe6 {[%emt 0:02:51]} Qxd6 {[%emt 0:00:30]} 32. Rfe1 {[%emt 0:00:36]} Qd5 {[%emt 0:01:00]} 33. Rad1 Qxc4 34. bxc4 Rad8 35. Rxd8 Rxd8 36. Rb1 1/2-1/2

[Event "XXIX Cracovia 2018"]
[Site "Krakow"]
[Date "2018.12.29"]
[Round "4"]
[White "Reza, Wojciech"]
[Black "Colijn, Stefan"]
[Result "1/2-1/2"]
[ECO "E15"]
[WhiteElo "2287"]
[BlackElo "2331"]
[Annotator "NA"]
[PlyCount "52"]
[EventDate "2018.12.27"]
[EventType "swiss"]
[EventCountry "POL"]
[SourceTitle "playchess.com"]
[Source "ChessBase"]
[SourceQuality "1"]
[TimeControl "40/5400+30:1800+30"]

1. d4 {[%emt 0:00:00]} Nf6 {[%emt 0:04:22]} 2. c4 {[%emt 0:00:00]} e6 {[%emt 0:00:26]} 3. Nf3 {[%emt 0:02:31]} b6 {[%emt 0:00:11]} 4. g3 {[%emt 0:00:18]} Ba6 {[%emt 0:00:40]} 5. Qc2 {[%emt 0:01:23]} d5 {[%emt 0:01:11]} 6. cxd5 {[%emt 0:02:54]} exd5 {[%emt 0:06:54]} 7. Bf4 {[%emt 0:06:39]} Bd6 {[%emt 0:00:15]} 8. Bxd6 {[%emt 0:04:42]} Qxd6 {[%emt 0:01:36]} 9. Bg2 {[%emt 0:01:22]} O-O {[%emt 0:02:20]} 10. O-O {[%emt 0:00:56]} Re8 {[%emt 0:06:50]} 11. Nc3 {[%emt 0:01:51]} Nbd7 {[%emt 0:04:44]} 12. Rfe1 {[%emt 0:10:52]} c6 {[%emt 0:16:29]} 13. Rad1 {[%emt 0:14:29]} Rad8 {[%emt 0:05:12]} 14. Nd2 {[%emt 0:10:17]} Bb7 {[%emt 0:07:46]} 15. e4 {[%emt 0:08:08]} Nxe4 {[%emt 0:05:10]} 16. Ndxe4 {[%emt 0:03:46]} dxe4 {[%emt 0:00:02]} 17. Nxe4 {[%emt 0:01:27]} Qg6 {[%emt 0:03:12]} 18. Qa4 {[%emt 0:10:21]} a5 {[%emt 0:02:36]} 19. Nc3 {[%emt 0:03:12]} Rxe1+ {[%emt 0:06:29]} 20. Rxe1 {[%emt 0:00:04]} Qd6 {[%emt 0:00:10]} 21. Ne4 {[%emt 0:03:28]} Qc7 {[%emt 0:01:59]} 22. Qc4 {[%emt 0:02:45]} Nf8 {[%emt 0:00:38]} 23. d5 {[%emt 0:05:06]} Qd7 {[%emt 0:10:38]} 24. dxc6 {[%emt 0:04:08]} Qxc6 {[%emt 0:01:06]} 25. Qxc6 {[%emt 0:00:48]} Bxc6 {[%emt 0:00:01]} 26. Nc3 {[%emt 0:00:50]} Bxg2 {[%emt 0:01:30]} 1/2-1/2

[Event "XXIX Cracovia 2018"]
[Site "Krakow"]
[Date "2018.12.29"]
[Round "4"]
[White "Czerw, Dawid"]
[Black "Molenda, Marcin"]
[Result "1/2-1/2"]
[ECO "E91"]
[WhiteElo "2275"]
[BlackElo "2383"]
[Annotator "NA"]
[PlyCount "34"]
[EventDate "2018.12.27"]
[EventType "swiss"]
[EventCountry "POL"]
[SourceTitle "playchess.com"]
[Source "ChessBase"]
[SourceQuality "1"]
[TimeControl "40/5400+30:1800+30"]

1. c4 Nf6 2. Nf3 g6 3. Nc3 Bg7 4. d4 O-O 5. e4 d6 6. Be2 Na6 7. O-O e5 8. Be3 Ng4 9. Bg5 Qe8 10. dxe5 dxe5 11. Qc1 c6 12. h3 Nf6 13. Bh6 Qe7 14. Bxg7 Kxg7 15. a3 Nh5 16. Re1 Nf4 17. Bf1 f6 1/2-1/2

[Event "XXIX Cracovia 2018"]
[Site "Krakow"]
[Date "2018.12.29"]
[Round "4"]
[White "Marczuk, Dominik"]
[Black "Biriukov, Nikolai"]
[Result "1/2-1/2"]
[ECO "B28"]
[WhiteElo "2274"]
[BlackElo "2365"]
[Annotator "NA"]
[PlyCount "34"]
[EventDate "2018.12.27"]
[EventType "swiss"]
[EventCountry "POL"]
[SourceTitle "playchess.com"]
[Source "ChessBase"]
[SourceQuality "1"]
[TimeControl "40/5400+30:1800+30"]

1. e4 {[%emt 0:00:00]} c5 {[%emt 0:00:00]} 2. Nf3 {[%emt 0:00:00]} a6 {[%emt 0:00:00]} 3. c3 {[%emt 0:00:46]} d5 {[%emt 0:00:00]} 4. exd5 {[%emt 0:00:05]} Qxd5 {[%emt 0:00:00]} 5. d4 {[%emt 0:00:13]} e6 {[%emt 0:00:16]} 6. Be2 {[%emt 0:01:46]} Nf6 {[%emt 0:02:30]} 7. O-O {[%emt 0:00:46]} Nc6 {[%emt 0:01:48]} 8. Be3 {[%emt 0:10:13]} cxd4 {[%emt 0:04:06]} 9. cxd4 {[%emt 0:04:07]} Be7 {[%emt 0:02:04]} 10. Nc3 {[%emt 0:00:32]} Qd6 {[%emt 0:00:45]} 11. Qd2 {[%emt 0:01:57]} O-O {[%emt 0:00:18]} 12. Rac1 {[%emt 0:12:47]} Nd5 {[%emt 0:12:15]} 13. Nxd5 {[%emt 0:04:41]} exd5 {[%emt 0:00:49]} 14. a3 {[%emt 0:13:48]} Be6 {[%emt 0:19:10]} 15. Bf4 {[%emt 0:04:11]} Qd7 {[%emt 0:00:06]} 16. Ne5 {[%emt 0:01:52]} Nxe5 {[%emt 0:00:07]} 17. Bxe5 {[%emt 0:00:49]} Rac8 {[%emt 0:01:51]} 1/2-1/2

[Event "XXIX Cracovia 2018"]
[Site "Krakow"]
[Date "2018.12.29"]
[Round "4"]
[White "Piotrowski, Przemyslaw"]
[Black "Mosesov, Danylo"]
[Result "1-0"]
[ECO "A13"]
[WhiteElo "2269"]
[BlackElo "2343"]
[Annotator "NA"]
[PlyCount "133"]
[EventDate "2018.12.27"]
[EventType "swiss"]
[EventCountry "POL"]
[SourceTitle "playchess.com"]
[Source "ChessBase"]
[SourceQuality "1"]
[TimeControl "40/5400+30:1800+30"]

1. Nf3 {[%emt 0:00:00]} Nf6 {[%emt 0:00:00]} 2. c4 {[%emt 0:00:00]} e6 {[%emt 0:00:02]} 3. g3 {[%emt 0:00:00]} d5 {[%emt 0:00:22]} 4. Bg2 {[%emt 0:00:00]} dxc4 {[%emt 0:02:08]} 5. Qa4+ {[%emt 0:01:18]} Nbd7 {[%emt 0:00:19]} 6. O-O {[%emt 0:01:53]} a6 {[%emt 0:01:00]} 7. Qxc4 {[%emt 0:00:07]} b5 {[%emt 0:00:03]} 8. Qc2 {[%emt 0:01:12]} Bb7 {[%emt 0:00:05]} 9. d3 {[%emt 0:06:06]} c5 {[%emt 0:01:04]} 10. a4 {[%emt 0:03:27]} Be7 {[%emt 0:01:27]} 11. Na3 {[%emt 0:07:48] A13: English Opening: 1...e6} (11. Nc3 Qb6 12. Qb3 b4 13. a5 Qd8 14. Nb1 Bd5 15. Qc2 O-O 16. Nbd2 Nb8 17. Rd1 Ra7 18. e4 Ba8 19. Nb3 {0-1 (49) Nakamura,H (2776)-Kramnik,V (2783) Zuerich 2015}) 11... O-O {[%emt 0:02:10]} 12. Be3 {[%emt 0:04:58]} Bc6 $146 {[%emt 0:04:36]} ({Predecessor:} 12... Qb6 13. axb5 axb5 14. Qb3 Bc6 15. Rac1 Qb7 16. Qc2 Rfc8 17. Ne1 Bxg2 18. Nxg2 {1-0 (53) Mudrak,J (2315)-Votruba,P (2360) Czechia 1995}) 13. b4 {[%emt 0:07:24]} bxa4 {[%emt 0:06:44]} 14. Bxc5 {[%emt 0:06:37]} Nxc5 {[%emt 0:00:54]} 15. bxc5 {[%emt 0:00:17]} Rc8 {[%emt 0:03:46]} 16. Rfc1 {[%emt 0:01:41]} Bxf3 {[%emt 0:38:13]} 17. Bxf3 {[%emt 0:00:32]} Bxc5 {[%emt 0:00:03]} 18. Qxa4 {[%emt 0:00:59]} Nd5 {[%emt 0:05:16]} 19. Nc2 {[%emt 0:13:05]} Qg5 {[%emt 0:13:17]} 20. Bxd5 {[%emt 0:10:22]} Qxd5 {[%emt 0:01:15]} 21. Qxa6 {[%emt 0:01:18]} h5 {[%emt 0:06:14]} 22. Ne3 {[%emt 0:02:33]} Qd7 {[%emt 0:00:17]} 23. Ng2 {[%emt 0:05:10]} Rc6 {[%emt 0:01:39]} 24. Qa4 {[%emt 0:03:00]} Rd8 {[%emt 0:02:05]} 25. Rc4 {[%emt 0:01:29]} e5 {[%emt 0:02:46]} 26. Qc2 {[%emt 0:06:13]} Rdc8 {[%emt 0:01:26]} 27. Rc1 {[%emt 0:00:51]} R6c7 {[%emt 0:01:26]} 28. Qb2 {[%emt 0:07:18]} Qf5 {[%emt 0:03:46]} 29. e3 {[%emt 0:04:33]} Qxd3 {[%emt 0:00:41]} 30. Qxe5 {[%emt 0:00:32]} Bd6 {[%emt 0:00:47]} 31. Rxc7 {[%emt 0:00:09]} Rxc7 {[%emt 0:00:21]} 32. Qa1 {[%emt 0:01:07]} Be5 {[%emt 0:00:35]} 33. Ne1 {[%emt 0:01:29]} Qe4 {[%emt 0:00:48]} 34. Qb1 {[%emt 0:00:19]} Qxb1 {[%emt 0:00:22]} 35. Rxb1 {[%emt 0:00:01]} g6 {[%emt 0:00:11]} 36. Nd3 {[%emt 0:00:25]} Bf6 {[%emt 0:00:09]} 37. Kg2 {[%emt 0:00:09]} Kg7 {[%emt 0:00:16]} 38. Kf3 {[%emt 0:00:05]} Rc2 {[%emt 0:00:28]} 39. Rb7 {[%emt 0:00:19]} g5 {[%emt 0:00:50]} 40. Rb5 {[%emt 0:00:00]} Kg6 {[%emt 0:00:00]} 41. h3 {[%emt 0:05:31]} Bd8 {[%emt 0:10:24]} 42. g4 {[%emt 0:02:50]} hxg4+ {[%emt 0:01:07]} 43. hxg4 {[%emt 0:00:05]} Bc7 {[%emt 0:02:33]} 44. Rd5 {[%emt 0:01:49]} f6 {[%emt 0:04:01]} 45. Nb4 {[%emt 0:05:25]} Rc4 {[%emt 0:01:20]} 46. Rd4 {[%emt 0:01:21]} Rxd4 {[%emt 0:05:11]} 47. exd4 {[%emt 0:00:07]} f5 {[%emt 0:00:00]} 48. Nd5 {[%emt 0:01:58]} Bd8 {[%emt 0:00:23]} 49. Kg3 {[%emt 0:00:46]} fxg4 {[%emt 0:01:40]} 50. Kxg4 {[%emt 0:00:02]} Ba5 {[%emt 0:00:06]} 51. Kf3 {[%emt 0:06:59]} Be1 {[%emt 0:04:38]} 52. Ne3 {[%emt 0:00:16]} Kf6 {[%emt 0:02:03]} 53. Ke4 {[%emt 0:00:06]} Ke6 {[%emt 0:00:15]} 54. d5+ {[%emt 0:01:05]} Kd6 $2 {[%emt 0:00:06] [#]} ({Better is} 54... Kf6 $14) 55. f3 $1 {[%emt 0:01:10]} Bc3 $2 {[%emt 0:00:50] [#]} (55... Ke7 $14) 56. Nf5+ $2 {[%emt 0:00:31]} ({White must play} 56. Nc4+ $1 $18 Kc5 57. Ne5) 56... Kc5 {[%emt 0:01:28]} 57. Nh6 {[%emt 0:00:24]} Bd2 {[%emt 0:00:52]} 58. Ke5 {[%emt 0:00:11]} Bf4+ {[%emt 0:00:42]} 59. Ke6 {[%emt 0:01:42]} Kd4 {[%emt 0:01:17]} 60. Ng4 {[%emt 0:00:13]} Bc7 {[%emt 0:00:47]} 61. d6 {[%emt 0:00:22]} Ba5 {[%emt 0:00:06]} 62. d7 {[%emt 0:00:19]} Kd3 {[%emt 0:00:29]} 63. Kf5 {[%emt 0:00:21]} Bd8 {[%emt 0:00:22]} 64. Ne5+ {[%emt 0:00:09]} Ke3 {[%emt 0:00:00]} 65. Kg4 {[%emt 0:00:23]} Bf6 {[%emt 0:00:19]} 66. Nf7 {[%emt 0:00:09]} Kf2 {[%emt 0:00:06]} 67. d8=Q {[%emt 0:00:09]} 1-0

[Event "XXIX Cracovia 2018"]
[Site "Krakow"]
[Date "2018.12.29"]
[Round "4"]
[White "Jaroch, Karol"]
[Black "Paszewski, Mateusz"]
[Result "1/2-1/2"]
[ECO "A12"]
[WhiteElo "2259"]
[BlackElo "2342"]
[Annotator "NA"]
[PlyCount "40"]
[EventDate "2018.12.27"]
[EventType "swiss"]
[EventCountry "POL"]
[SourceTitle "playchess.com"]
[Source "ChessBase"]
[SourceQuality "1"]
[TimeControl "40/5400+30:1800+30"]

1. c4 {[%emt 0:00:00]} c6 {[%emt 0:00:00]} 2. Nf3 {[%emt 0:00:00]} d5 {[%emt 0:00:00]} 3. b3 {[%emt 0:01:44]} Nf6 {[%emt 0:00:00]} 4. Bb2 {[%emt 0:00:06]} Bg4 {[%emt 0:02:02]} 5. e3 {[%emt 0:08:34]} e6 {[%emt 0:01:27]} 6. Be2 {[%emt 0:04:26]} Nbd7 {[%emt 0:00:16]} 7. O-O {[%emt 0:00:23]} Bd6 {[%emt 0:01:41]} 8. d4 {[%emt 0:05:36]} Qb8 {[%emt 0:07:29]} 9. Nbd2 {[%emt 0:04:08]} O-O {[%emt 0:01:18]} 10. h3 {[%emt 0:00:14]} Bxf3 {[%emt 0:18:36]} 11. Bxf3 {[%emt 0:05:04]} Bb4 {[%emt 0:04:35]} 12. a3 {[%emt 0:09:53]} Bxd2 {[%emt 0:03:41]} 13. Qxd2 {[%emt 0:00:04]} b5 {[%emt 0:00:22]} 14. cxd5 {[%emt 0:03:49]} cxd5 {[%emt 0:00:20]} 15. Bc3 {[%emt 0:08:25]} Qb7 {[%emt 0:03:28]} 16. Rfc1 {[%emt 0:05:04]} Ne4 {[%emt 0:06:01]} 17. Bxe4 {[%emt 0:00:51]} dxe4 {[%emt 0:02:00]} 18. Bb4 {[%emt 0:00:09]} Rfc8 {[%emt 0:00:21]} 19. Rxc8+ {[%emt 0:00:29]} Rxc8 {[%emt 0:00:03]} 20. Rc1 {[%emt 0:00:08]} Rc6 {[%emt 0:11:57]} 1/2-1/2